bitfinex-derivatives/quotes_BTCF0:USTF0_20241227
["timestamp","ask_amount","ask_price","bid_price","bid_amount"]
[1735337220724,0.0115906,94335.0,94334.0,0.0183439]
[1735337221113,0.0496906,94335.0,94334.0,0.0183439]
[1735337222914,0.0496906,94335.0,94307.0,0.053095]
[1735337223222,0.41389,94316.0,94308.0,0.053094]
[1735337224025,0.41389,94316.0,94310.0,0.053093]
[1735337224226,0.3608,94316.0,94313.0,0.053091]
[1735337225524,0.3608,94316.0,94313.0,0.054091]
[1735337227227,0.3608,94316.0,94314.0,0.053091]
[1735337229428,0.3608,94316.0,94306.0,0.053095]
[1735337229934,0.3608,94307.0,94286.0,1.50056]
[1735337230129,0.053097,94304.0,94291.0,0.053103]
[1735337230525,0.047097,94304.0,94291.0,0.053103]
[1735337230733,0.0763,94306.0,94290.0,0.10819752]
[1735337230923,0.053097,94304.0,94290.0,0.10819752]
[1735337231131,0.053097,94304.0,94302.0,0.00759058]
[1735337231832,0.054097,94304.0,94302.0,0.00759058]
[1735337232336,0.054097,94304.0,94302.0,0.00959058]
[1735337237335,0.054097,94304.0,94302.0,0.06268758]
[1735337239442,0.12563549,94303.0,94302.0,0.06268758]
[1735337240348,0.12563549,94303.0,94302.0,0.0739651]
[1735337240644,0.17973249,94304.0,94302.0,0.0739651]
[1735337240846,0.001,94303.0,94302.0,0.0729651]
[1735337241848,0.3618,94303.0,94302.0,0.00859058]
[1735337242043,0.4027,94303.0,94277.0,0.0417]
[1735337242345,0.411901,94295.0,94284.0,0.053108]
[1735337242545,0.053105,94289.0,94284.0,0.053108]
[1735337243348,0.049105,94289.0,94284.0,0.053108]
[1735337243544,0.041105,94289.0,94284.0,0.053108]
[1735337243944,0.042105,94289.0,94284.0,0.061108]
[1735337244146,0.3608,94287.0,94284.0,0.067108]
[1735337244347,0.3608,94287.0,94284.0,0.014]
[1735337244545,0.3608,94287.0,94285.0,0.053107]
[1735337245249,0.002,94289.0,94288.0,0.053105]
[1735337246234,0.12563549,94290.0,94288.0,0.053105]
[1735337246649,0.36136001,94295.0,94292.0,0.053103]
[1735337246852,0.3608,94295.0,94293.0,0.038]
[1735337247151,0.3608,94295.0,94293.0,0.0767]
[1735337249353,0.3618,94295.0,94293.0,0.0767]
[1735337249652,0.3628,94295.0,94293.0,0.0767]
[1735337250039,0.3618,94295.0,94293.0,0.08808724]
[1735337250353,0.3638,94295.0,94293.0,0.08808724]
[1735337251850,0.3648,94295.0,94293.0,0.08808724]
[1735337252538,0.3628,94295.0,94293.0,0.08808724]
[1735337252736,0.3648,94295.0,94293.0,0.08808724]
[1735337253446,0.12581541,94294.0,94293.0,0.08808724]
[1735337254047,0.12581541,94294.0,94293.0,0.01138724]
[1735337254250,0.12581541,94294.0,94292.0,0.053103]
[1735337254752,0.12581541,94294.0,94292.0,0.06446637]
[1735337254954,0.36536001,94295.0,94292.0,0.06446637]
[1735337255154,0.3648,94295.0,94292.0,0.06446637]
[1735337255454,0.001,94294.0,94292.0,0.06446637]
[1735337255646,0.003,94294.0,94292.0,0.06446637]
[1735337256151,0.001,94294.0,94292.0,0.06446637]
[1735337256752,0.002,94294.0,94292.0,0.06446637]
[1735337258559,0.003,94294.0,94292.0,0.06446637]
[1735337260648,0.1577405,94293.0,94292.0,0.06446637]
[1735337262157,0.05163932,94293.0,94292.0,0.06446637]
[1735337262358,0.05463932,94293.0,94292.0,0.06446637]
[1735337263459,0.003,94293.0,94292.0,0.06446637]
[1735337265055,0.16048853,94293.0,94292.0,0.06446637]
[1735337266554,0.003,94293.0,94292.0,0.06446637]
[1735337269666,0.18900082,94301.0,94300.0,0.053099]
[1735337269852,0.18900082,94301.0,94300.0,0.413899]
[1735337270056,0.18900082,94301.0,94300.0,1.913899]
[1735337271256,0.19400082,94301.0,94300.0,1.913899]
[1735337272159,0.19700082,94301.0,94300.0,1.913899]
[1735337272464,0.008,94301.0,94300.0,2.10421912]
[1735337272782,0.18900082,94320.0,94319.0,0.053088]
[1735337272970,0.18960083,94320.0,94319.0,0.053088]
[1735337273159,0.18900082,94320.0,94319.0,0.413888]
[1735337273365,0.10893922,94320.0,94319.0,0.413888]
[1735337273762,0.10893922,94325.0,94324.0,0.053085]
[1735337274057,0.10187922,94325.0,94324.0,0.053085]
[1735337274260,0.10187922,94325.0,94324.0,1.553085]
[1735337275055,0.009,94325.0,94324.0,1.553085]
[1735337275260,0.009,94325.0,94318.0,0.42808]
[1735337275460,0.016,94325.0,94318.0,0.42808]
[1735337275761,0.3608,94319.0,94318.0,0.42808]
[1735337275964,0.3608,94319.0,94318.0,0.43950721]
[1735337276572,0.4018,94319.0,94318.0,0.43950721]
[1735337276975,0.4018,94319.0,94318.0,0.001]
[1735337277670,0.4018,94319.0,94303.0,0.053096]
[1735337277859,0.3608,94308.0,94304.0,0.053096]
[1735337278065,0.3608,94308.0,94301.0,1.50056]
[1735337278265,0.3608,94308.0,94306.0,0.053095]
[1735337278472,0.05309,94315.0,94306.0,0.053095]
[1735337279066,0.3678,94308.0,94306.0,0.053095]
[1735337280288,0.3608,94308.0,94306.0,0.053095]
[1735337280870,0.3648,94308.0,94306.0,0.053095]
[1735337281268,0.3728,94308.0,94306.0,0.053095]
[1735337281469,0.012,94308.0,94306.0,0.053095]
[1735337283079,0.008,94308.0,94306.0,0.053095]
[1735337283582,0.008,94308.0,94307.0,0.3608]
[1735337283966,0.012,94308.0,94307.0,0.3608]
[1735337286076,0.0411,94333.0,94307.0,0.4033]
[1735337286276,0.0411,94333.0,94320.0,0.10819752]
[1735337286476,0.0411,94333.0,94332.0,0.053081]
[1735337286679,0.3608,94340.0,94322.0,0.053086]
[1735337286867,0.3608,94340.0,94332.0,0.05308]
[1735337287682,0.004,94333.0,94332.0,0.05308]
[1735337288079,0.3738,94340.0,94334.0,0.053079]
[1735337288275,0.3738,94340.0,94335.0,0.053079]
[1735337288577,0.09428418,94338.0,94336.0,0.053078]
[1735337290673,0.10328418,94338.0,94336.0,0.054078]
[1735337290985,0.10828418,94338.0,94336.0,0.054078]
[1735337291384,0.014,94338.0,94336.0,0.054078]
[1735337291582,0.009,94338.0,94336.0,0.054078]
[1735337291783,0.014,94338.0,94336.0,0.054078]
[1735337292181,0.053078,94337.0,94336.0,0.001]
[1735337292579,0.053078,94337.0,94329.0,0.053082]
[1735337292886,0.053081,94332.0,94329.0,0.053082]
[1735337293884,0.014,94337.0,94320.0,0.10819752]
[1735337294087,0.012,94337.0,94331.0,0.053081]
[1735337294387,0.003,94332.0,94331.0,0.053081]
[1735337294588,0.003,94332.0,94331.0,1.553081]
[1735337294779,0.01,94332.0,94331.0,1.553081]
[1735337294974,0.007,94332.0,94331.0,1.553081]
[1735337295175,0.007,94332.0,94331.0,0.053081]
[1735337296079,0.001,94337.0,94336.0,0.053078]
[1735337296080,0.009,94337.0,94336.0,0.053078]
[1735337296591,0.09428418,94338.0,94336.0,0.053078]
[1735337297180,0.009,94337.0,94336.0,0.054078]
[1735337297381,0.014,94337.0,94336.0,0.054078]
[1735337297787,0.005,94337.0,94336.0,0.053078]
[1735337298295,0.18845615,94352.0,94336.0,0.064035]
[1735337298487,0.18845615,94352.0,94344.0,0.053074]
[1735337299591,0.053068,94355.0,94344.0,0.053074]
[1735337299789,0.00559043,94345.0,94344.0,0.053074]
[1735337300395,0.00159043,94345.0,94344.0,0.054074]
[1735337300586,0.11090071,94345.0,94344.0,0.055074]
[1735337302194,0.01659043,94345.0,94344.0,0.055074]
[1735337302796,0.015,94345.0,94344.0,0.055074]
[1735337303098,0.1571838,94357.0,94346.0,0.053073]
[1735337303293,0.1571838,94357.0,94356.0,0.3608]
[1735337303487,0.1571838,94357.0,94356.0,1.8608]
[1735337303801,0.1571838,94358.0,94356.0,1.913867]
[1735337304098,0.1571838,94358.0,94357.0,0.0403]
[1735337304390,0.1571838,94358.0,94356.0,1.913867]
[1735337304391,0.1571838,94358.0,94356.0,0.3614]
[1735337304588,0.1571838,94358.0,94356.0,0.3608]
[1735337304785,0.0394,94357.0,94356.0,0.3608]
[1735337304990,0.0394,94357.0,94349.0,0.053071]
[1735337304991,0.4002,94357.0,94349.0,0.053071]
[1735337305185,0.4002,94357.0,94352.0,0.053069]
[1735337305589,0.4002,94357.0,94356.0,0.001]
[1735337305790,0.4092,94357.0,94356.0,0.002]
[1735337306390,0.4042,94357.0,94352.0,0.054069]
[1735337306797,0.4042,94357.0,94352.0,0.053069]
[1735337306998,0.4042,94357.0,94356.0,0.001]
[1735337307198,0.4022,94357.0,94356.0,0.001]
[1735337307400,0.4022,94357.0,94353.0,0.053068]
[1735337308899,0.4112,94357.0,94356.0,0.001]
[1735337309102,0.4092,94357.0,94356.0,0.001]
[1735337309293,0.4112,94357.0,94356.0,0.001]
[1735337309599,0.4102,94357.0,94354.0,0.053068]
[1735337309986,0.4122,94357.0,94356.0,0.001]
[1735337310601,0.4122,94357.0,94354.0,0.054068]
[1735337310602,0.4112,94357.0,94354.0,0.054068]
[1735337311902,0.011,94357.0,94355.0,0.053067]
[1735337312100,0.003,94357.0,94355.0,0.053067]
[1735337312294,0.011,94357.0,94356.0,0.0424]
[1735337312799,0.1571838,94376.0,94356.0,0.3414]
[1735337313003,0.1571838,94376.0,94366.0,0.3608]
[1735337313189,0.1571838,94376.0,94375.0,0.3608]
[1735337313999,0.1571838,94376.0,94375.0,0.413856]
[1735337314396,0.0427,94379.0,94378.0,0.053055]
[1735337314590,0.00158989,94384.0,94380.0,0.053053]
[1735337314794,0.00158989,94384.0,94375.0,0.3608]
[1735337315089,0.00158989,94384.0,94383.0,0.053052]
[1735337316090,0.00258989,94384.0,94383.0,0.053052]
[1735337316292,0.00858989,94384.0,94383.0,0.054052]
[1735337316492,0.00758989,94384.0,94383.0,0.054052]
[1735337316703,0.00758989,94384.0,94383.0,0.055052]
[1735337324801,0.006,94384.0,94383.0,0.055052]
[1735337326107,0.006,94384.0,94383.0,0.054052]
[1735337326300,0.007,94384.0,94383.0,0.055052]
[1735337327500,0.007,94384.0,94383.0,0.054052]
[1735337332315,0.060051,94384.0,94383.0,0.001]
[1735337335208,0.2172348,94384.0,94383.0,0.001]
[1735337336507,0.11164921,94384.0,94383.0,0.001]
[1735337337306,0.053058,94373.0,94371.0,0.053058]
[1735337337615,0.05306,94369.0,94367.0,0.00056]
[1735337337913,0.053062,94365.0,94360.0,0.413864]
[1735337338319,0.053062,94365.0,94360.0,0.053064]
[1735337338515,0.053062,94365.0,94356.0,0.24362751]
[1735337338715,0.053062,94365.0,94364.0,0.01270788]
[1735337338907,0.053062,94365.0,94364.0,0.00158937]
[1735337339110,0.05306,94368.0,94367.0,0.001]
[1735337339604,0.084,94371.0,94357.0,0.053067]
[1735337339809,0.055062,94365.0,94364.0,0.001]
[1735337340706,0.053063,94364.0,94357.0,0.053067]
[1735337341022,0.3608,94358.0,94357.0,0.053067]
[1735337341412,0.3608,94358.0,94357.0,0.0641367]
[1735337342515,0.3618,94358.0,94357.0,0.0641367]
[1735337342718,0.3618,94358.0,94357.0,0.0110697]
[1735337342915,0.3638,94358.0,94352.0,1.981349]
[1735337343118,0.3638,94358.0,94352.0,1.980789]
[1735337343314,0.3618,94358.0,94352.0,1.92772]
[1735337343624,0.3638,94358.0,94356.0,0.053067]
[1735337344717,0.3628,94358.0,94356.0,0.053067]
[1735337344922,0.3638,94358.0,94356.0,0.053067]
[1735337345124,0.13579064,94367.0,94356.0,0.353067]
[1735337345315,0.18845615,94372.0,94356.0,0.353067]
[1735337345316,0.18845615,94372.0,94361.0,0.3608]
[1735337345620,0.12485615,94374.0,94362.0,0.0401]
[1735337345821,0.12485615,94374.0,94373.0,0.053058]
[1735337346910,0.3608,94390.0,94388.0,0.053049]
[1735337348511,0.3608,94390.0,94388.0,0.054049]
[1735337348923,0.3668,94390.0,94388.0,0.055049]
[1735337353027,0.3668,94390.0,94388.0,0.06603211]
[1735337356718,0.3668,94390.0,94389.0,0.0398]
[1735337357223,0.00158946,94404.0,94389.0,1.5398]
[1735337357429,0.00158946,94404.0,94390.0,0.10819752]
[1735337358519,0.00158946,94404.0,94399.0,0.3608]
[1735337358827,0.107,94400.0,94399.0,0.413843]
[1735337360926,0.1,94400.0,94399.0,0.413843]
[1735337361318,0.1,94400.0,94399.0,0.42563108]
[1735337363119,0.1,94400.0,94399.0,0.37258808]
[1735337363929,0.1394,94400.0,94399.0,0.3618]
[1735337364523,0.1394,94400.0,94389.0,0.3608]
[1735337364723,0.3608,94393.0,94386.0,0.19056051]
[1735337364927,0.053049,94389.0,94386.0,0.19056051]
[1735337365425,0.3608,94393.0,94384.0,0.01067489]
[1735337365426,0.05305,94386.0,94384.0,0.01067489]
[1735337365619,0.3608,94385.0,94384.0,0.01067489]
[1735337365819,0.3608,94385.0,94375.0,0.053056]
[1735337366630,0.053053,94381.0,94375.0,0.053056]
[1735337367415,0.053056,94377.0,94368.0,0.05306]
[1735337367727,0.3608,94376.0,94365.0,0.00072]
[1735337367934,0.053063,94363.0,94362.0,0.19056051]
[1735337368122,0.3608,94366.0,94353.0,0.19056051]
[1735337368432,0.053065,94360.0,94353.0,0.19056051]
[1735337369530,0.002,94363.0,94341.0,0.3608]
[1735337369531,0.3608,94354.0,94341.0,0.3608]
[1735337369730,0.053074,94344.0,94341.0,0.3608]
[1735337371233,0.054074,94344.0,94341.0,0.3608]
[1735337371630,0.053074,94344.0,94335.0,0.43883212]
[1735337371825,0.054074,94344.0,94335.0,0.43883212]
[1735337373437,0.053074,94344.0,94335.0,0.43883212]
[1735337373643,0.054074,94344.0,94335.0,0.43883212]
[1735337373938,0.054074,94344.0,94338.0,0.00258982]
[1735337374240,0.055074,94344.0,94338.0,0.00258982]
[1735337374625,0.055074,94344.0,94338.0,0.00158982]
[1735337376542,0.055074,94344.0,94339.0,1.5]
[1735337377634,0.053074,94344.0,94339.0,1.5]
[1735337377842,0.057074,94344.0,94339.0,1.5]
[1735337379143,0.057074,94344.0,94338.0,0.00158982]
[1735337379441,0.053076,94340.0,94338.0,0.00158982]
[1735337380937,0.057076,94340.0,94338.0,0.00158982]
[1735337381636,0.057076,94340.0,94338.0,0.05466682]
[1735337387949,0.057076,94340.0,94338.0,0.00158982]
[1735337390051,0.053087,94321.0,94320.0,0.3608]
[1735337391357,0.053087,94321.0,94320.0,0.3638]
[1735337391758,0.053087,94321.0,94320.0,0.003]
[1735337393556,0.3608,94327.0,94320.0,0.001]
[1735337393750,0.053087,94321.0,94320.0,0.001]
[1735337396060,0.3608,94327.0,94316.0,0.0411]
[1735337396265,0.053087,94321.0,94320.0,0.001]
[1735337396953,0.052089,94317.0,94316.0,0.0411]
[1735337398161,0.052089,94317.0,94316.0,0.0431]
[1735337398360,0.052089,94317.0,94316.0,0.0451]
[1735337409974,0.052089,94317.0,94316.0,0.004]
[1735337411167,0.053092,94311.0,94310.0,0.25421322]
[1735337411970,0.053098,94302.0,94298.0,0.053099]
[1735337412177,0.413898,94302.0,94298.0,0.053099]
[1735337413474,0.415898,94302.0,94298.0,0.053099]
[1735337415674,0.415898,94302.0,94301.0,0.43856444]
[1735337416271,0.415898,94302.0,94301.0,0.01072444]
[1735337416471,0.3628,94302.0,94298.0,0.053099]
[1735337416672,0.053099,94299.0,94298.0,0.053099]
[1735337417575,0.053099,94299.0,94298.0,0.06372234]
[1735337417980,0.0531,94297.0,94292.0,0.0406]
[1735337419283,0.053107,94286.0,94284.0,0.29181322]
[1735337419472,0.052107,94286.0,94284.0,0.29181322]
[1735337419781,0.3608,94285.0,94284.0,0.26493932]
[1735337420178,0.3588,94285.0,94284.0,0.26493932]
[1735337420573,0.3568,94285.0,94284.0,0.0107261]
[1735337420775,0.3568,94285.0,94279.0,0.0379]
[1735337421381,0.05311,94281.0,94279.0,0.0379]
[1735337422082,0.04811,94281.0,94279.0,0.0379]
[1735337422579,0.04511,94281.0,94279.0,0.0379]
[1735337422778,0.04611,94281.0,94279.0,0.0449]
[1735337423169,0.04611,94281.0,94279.0,0.05981696]
[1735337424676,0.04611,94281.0,94279.0,0.02191696]
[1735337425883,0.04611,94281.0,94279.0,0.01891696]
[1735337426282,0.04511,94281.0,94279.0,0.01491696]
[1735337431383,0.13933759,94281.0,94279.0,0.01491696]
[1735337432679,0.04511,94281.0,94279.0,0.01491696]
[1735337441401,0.04511,94281.0,94279.0,0.004]
[1735337441787,0.12578358,94280.0,94279.0,0.004]
[1735337443285,0.0516561,94280.0,94279.0,1.504]
[1735337443480,0.0516561,94280.0,94279.0,0.004]
[1735337443684,0.0516561,94280.0,94272.0,0.053114]
[1735337443884,0.051114,94274.0,94272.0,1.553114]
[1735337444296,0.051114,94274.0,94272.0,1.5]
[1735337444498,0.3608,94275.0,94271.0,0.43864399]
[1735337444797,0.050114,94272.0,94271.0,0.43864399]
[1735337444996,0.043114,94272.0,94271.0,0.43864399]
[1735337445586,0.036114,94272.0,94271.0,0.44164399]
[1735337446394,0.036114,94272.0,94271.0,0.43108]
[1735337446597,0.036114,94272.0,94271.0,0.003]
[1735337446992,0.44857384,94272.0,94265.0,0.05239766]
[1735337447198,0.050118,94266.0,94265.0,0.05239766]
[1735337448186,0.051118,94266.0,94265.0,0.05639766]
[1735337450601,0.051118,94266.0,94265.0,0.05539766]
[1735337452598,0.051118,94266.0,94265.0,0.01379766]
[1735337456101,0.051118,94266.0,94265.0,0.003]
[1735337457099,0.051118,94266.0,94257.0,0.01069632]
[1735337457304,0.053122,94258.0,94257.0,0.01069632]
[1735337457603,0.053127,94250.0,94249.0,0.0386]
[1735337457805,0.413927,94250.0,94249.0,0.0386]
[1735337458308,0.408927,94250.0,94249.0,0.0386]
[1735337459313,0.053131,94242.0,94240.0,0.42824]
[1735337459806,0.053131,94242.0,94241.0,0.05124519]
[1735337460202,0.049131,94242.0,94241.0,0.05124519]
[1735337460607,0.049131,94242.0,94241.0,0.09054519]
[1735337460809,0.050131,94242.0,94241.0,0.09054519]
[1735337461007,0.001,94242.0,94241.0,0.09154519]
[1735337461510,0.09430068,94244.0,94242.0,0.053131]
[1735337461705,0.08306095,94243.0,94242.0,0.053131]
[1735337462312,0.08306095,94243.0,94242.0,1.553131]
[1735337462906,0.08406095,94243.0,94242.0,1.553131]
[1735337463104,0.02166095,94243.0,94242.0,1.553131]
[1735337463304,0.12576966,94255.0,94242.0,1.553131]
[1735337463511,0.15730508,94264.0,94263.0,0.05312]
[1735337463815,0.18851162,94274.0,94273.0,0.053114]
[1735337464915,0.3608,94282.0,94280.0,0.05311]
[1735337466510,0.3688,94282.0,94280.0,0.05311]
[1735337466910,0.008,94282.0,94280.0,0.05311]
[1735337467111,0.013,94282.0,94280.0,0.05311]
[1735337468512,0.013,94282.0,94280.0,0.06418594]
[1735337471009,0.066109,94282.0,94280.0,0.06418594]
[1735337475717,0.066109,94282.0,94280.0,0.01107594]
[1735337475906,0.013,94282.0,94270.0,0.52216639]
[1735337476105,0.053112,94277.0,94271.0,0.053115]
[1735337476313,0.013,94282.0,94270.0,0.46905139]
[1735337476619,0.013,94282.0,94281.0,0.053109]
[1735337477012,0.003,94282.0,94281.0,0.053109]
[1735337477211,0.003,94282.0,94281.0,1.553109]
[1735337477725,0.011,94282.0,94281.0,1.553109]
[1735337478713,0.013,94282.0,94281.0,1.913909]
[1735337479109,0.092798,94302.0,94281.0,1.8608]
[1735337479316,0.053098,94302.0,94294.0,0.053102]
[1735337479621,0.053098,94302.0,94297.0,0.0531]
[1735337480922,0.053099,94300.0,94297.0,0.0531]
[1735337481122,0.009,94302.0,94290.0,0.3608]
[1735337481320,0.0531,94297.0,94293.0,0.053103]
[1735337481715,0.3608,94299.0,94290.0,0.3608]
[1735337482022,0.053102,94295.0,94290.0,0.413904]
[1735337482224,0.3608,94299.0,94295.0,0.053101]
[1735337482623,0.0531,94298.0,94295.0,0.053101]
[1735337482825,0.0531,94298.0,94297.0,0.001]
[1735337483528,0.0531,94298.0,94295.0,0.054101]
[1735337483712,0.0601,94298.0,94295.0,0.055101]
[1735337483918,0.0601,94298.0,94295.0,0.054101]
[1735337484122,0.053101,94296.0,94295.0,0.054101]
[1735337484830,0.053101,94296.0,94295.0,0.001]
[1735337485330,0.053103,94294.0,94290.0,0.3608]
[1735337485528,0.3608,94291.0,94281.0,0.01099846]
[1735337485735,0.46905139,94291.0,94277.0,0.053112]
[1735337485919,0.053111,94278.0,94277.0,0.053112]
[1735337487635,0.058111,94278.0,94277.0,0.053112]
[1735337488823,0.062111,94278.0,94277.0,0.053112]
[1735337491721,0.009,94278.0,94277.0,0.053112]
[1735337493738,0.0407,94297.0,94277.0,1.5]
[1735337493933,0.0407,94297.0,94295.0,0.053101]
[1735337495035,0.22054516,94309.0,94297.0,0.0531]
[1735337495232,0.22054516,94309.0,94297.0,0.4139]
[1735337495433,0.15733739,94307.0,94304.0,0.053096]
[1735337495843,0.15733739,94307.0,94304.0,1.553096]
[1735337496232,0.15733739,94307.0,94304.0,1.5]
[1735337496433,0.15733739,94307.0,94306.0,0.053095]
[1735337496434,0.15574623,94307.0,94306.0,0.053095]
[1735337496637,0.15729445,94321.0,94306.0,0.053095]
[1735337496839,0.15729445,94321.0,94316.0,0.3608]
[1735337497742,0.3608,94331.0,94316.0,0.3608]
[1735337498144,0.3608,94331.0,94324.0,0.053085]
[1735337498740,0.3608,94331.0,94316.0,0.3608]
[1735337498741,0.3678,94331.0,94316.0,0.3618]
[1735337498943,0.009,94321.0,94320.0,0.10825139]
[1735337499242,0.009,94321.0,94320.0,0.053087]
[1735337499433,0.420881,94331.0,94316.0,0.3618]
[1735337499632,0.431881,94331.0,94324.0,0.002]
[1735337500338,0.422881,94331.0,94327.0,0.053083]
[1735337500542,0.0382,94330.0,94327.0,0.053083]
[1735337501239,0.0382,94330.0,94324.0,0.001]
[1735337501444,0.053087,94321.0,94320.0,0.001]
[1735337501745,0.413887,94321.0,94320.0,0.001]
[1735337501937,0.413887,94321.0,94313.0,0.053091]
[1735337501938,0.3608,94321.0,94313.0,0.053091]
[1735337502141,0.053092,94313.0,94300.0,0.10825139]
[1735337502334,0.053092,94313.0,94308.0,0.053094]
[1735337503643,0.062092,94313.0,94308.0,0.054094]
[1735337504345,0.067092,94313.0,94308.0,0.055094]
[1735337504544,0.053093,94311.0,94308.0,0.055094]
[1735337505542,0.014,94313.0,94308.0,0.001]
[1735337505840,0.005,94311.0,94309.0,0.053094]
[1735337506743,0.058093,94311.0,94308.0,0.001]
[1735337506937,0.0395,94310.0,94308.0,0.001]
[1735337507336,0.0403,94309.0,94308.0,0.001]
[1735337507939,0.0403,94309.0,94308.0,0.054094]
[1735337509036,0.0543,94309.0,94308.0,0.055094]
[1735337509843,0.053094,94308.0,94305.0,0.37142364]
[1735337510042,0.094394,94308.0,94305.0,0.3608]
[1735337511046,0.3608,94307.0,94301.0,0.053098]
[1735337511546,0.3608,94307.0,94302.0,0.053097]
[1735337511845,0.3608,94307.0,94302.0,1.553097]
[1735337512143,0.3648,94307.0,94302.0,1.553097]
[1735337512349,0.3718,94307.0,94302.0,1.553097]
[1735337512743,0.3718,94307.0,94303.0,0.053097]
[1735337512943,0.3728,94307.0,94305.0,0.053095]
[1735337513646,0.3688,94307.0,94305.0,0.053095]
[1735337513946,0.3738,94307.0,94305.0,0.053095]
[1735337514339,0.3688,94307.0,94305.0,0.053095]
[1735337514539,0.3738,94307.0,94305.0,0.054095]
[1735337515738,0.3658,94307.0,94305.0,0.054095]
[1735337515933,0.3748,94307.0,94305.0,0.054095]
[1735337516348,0.3658,94307.0,94305.0,0.054095]
[1735337516546,0.3748,94307.0,94305.0,0.054095]
[1735337516749,0.3608,94327.0,94325.0,0.053084]
[1735337518046,0.3608,94327.0,94325.0,0.054084]
[1735337518344,0.3698,94327.0,94325.0,0.054084]
[1735337520950,0.3758,94327.0,94325.0,0.055084]
[1735337523049,0.3758,94327.0,94325.0,0.06607007]
[1735337524844,0.015,94327.0,94325.0,0.06607007]
[1735337525553,0.015,94327.0,94326.0,0.0427]
[1735337525948,0.015,94327.0,94326.0,0.0848]
[1735337526547,0.006,94327.0,94326.0,0.0848]
[1735337526855,0.015,94327.0,94326.0,0.0858]
[1735337528053,0.018,94327.0,94326.0,0.0868]
[1735337528554,0.009,94327.0,94326.0,0.0858]
[1735337528747,0.018,94327.0,94326.0,0.0868]
[1735337529760,0.016,94327.0,94326.0,0.0868]
[1735337533066,0.016,94327.0,94326.0,0.0447]
[1735337535062,0.016,94327.0,94326.0,0.002]
[1735337539963,0.60821367,94348.0,94326.0,0.002]
[1735337540267,0.55702389,94348.0,94347.0,0.053072]
[1735337540459,0.55702389,94348.0,94347.0,1.553072]
[1735337541054,0.53541367,94348.0,94347.0,1.553072]
[1735337541357,0.13771367,94348.0,94347.0,0.413872]
[1735337541671,0.15710253,94355.0,94354.0,0.053068]
[1735337541960,0.12558294,94359.0,94358.0,0.053066]
[1735337542866,0.12558294,94359.0,94358.0,0.413866]
[1735337543459,0.04148997,94373.0,94358.0,0.413866]
[1735337543460,0.04148997,94373.0,94358.0,0.3608]
[1735337543657,0.04148997,94373.0,94371.0,0.053059]
[1735337544862,0.00158997,94373.0,94371.0,0.053059]
[1735337545159,0.00158997,94373.0,94371.0,0.055059]
[1735337545555,0.00158997,94373.0,94371.0,0.06597291]
[1735337549669,0.00158997,94373.0,94371.0,0.06497291]
[1735337551962,0.3608,94372.0,94371.0,0.01191391]
[1735337552170,0.053062,94365.0,94358.0,0.3608]
[1735337552373,0.094263,94364.0,94358.0,0.3608]
[1735337553165,0.094263,94364.0,94358.0,0.37164074]
[1735337553568,0.0412,94364.0,94359.0,0.053065]
[1735337553961,0.0422,94364.0,94359.0,0.053065]
[1735337554570,0.001,94364.0,94363.0,0.053063]
[1735337555275,0.00158997,94373.0,94363.0,1.553063]
[1735337555478,0.00158997,94373.0,94372.0,0.053058]
[1735337555778,0.0393,94387.0,94382.0,0.053052]
[1735337557278,0.3618,94384.0,94382.0,0.054052]
[1735337557672,0.3608,94402.0,94383.0,0.3608]
[1735337557870,0.053041,94403.0,94393.0,0.3608]
[1735337558177,0.1206,94406.0,94399.0,0.053043]
[1735337558773,0.101,94400.0,94399.0,0.053043]
[1735337559579,0.101,94400.0,94399.0,0.054043]
[1735337559770,0.101,94400.0,94399.0,0.001]
[1735337560270,0.1,94400.0,94399.0,0.002]
[1735337560581,0.1,94400.0,94385.0,0.053051]
[1735337560879,0.46905139,94395.0,94383.0,0.3608]
[1735337561072,0.053051,94385.0,94383.0,0.3608]
[1735337561265,0.08,94384.0,94383.0,0.3608]
[1735337561971,0.08,94384.0,94383.0,0.3618]
[1735337563771,0.1195,94384.0,94383.0,0.3618]
[1735337564373,0.1195,94384.0,94383.0,0.414852]
[1735337564576,0.0798,94384.0,94383.0,0.414852]
[1735337567378,0.00064,94395.0,94394.0,0.053046]
[1735337567586,0.083,94399.0,94398.0,0.053044]
[1735337570169,0.083,94399.0,94398.0,0.054044]
[1735337570974,0.083,94399.0,94398.0,0.055044]
[1735337572584,0.083,94399.0,94398.0,0.002]
[1735337572772,0.053046,94394.0,94393.0,0.3608]
[1735337573982,0.053046,94394.0,94393.0,0.3618]
[1735337574887,0.053046,94394.0,94393.0,0.3608]
[1735337575090,0.053046,94394.0,94393.0,0.3618]
[1735337575481,0.001,94394.0,94393.0,0.3628]
[1735337575681,0.001,94394.0,94393.0,0.415846]
[1735337576183,0.083,94399.0,94398.0,0.053044]
[1735337577279,0.002,94399.0,94398.0,0.054044]
[1735337577980,0.002,94399.0,94398.0,1.554044]
[1735337578582,0.002,94399.0,94398.0,1.56464389]
[1735337578890,0.003,94399.0,94398.0,1.56464389]
[1735337579387,0.15710253,94418.0,94417.0,0.053033]
[1735337579690,0.15710253,94418.0,94417.0,0.413833]
[1735337580189,0.053028,94425.0,94417.0,0.413833]
[1735337580386,0.053028,94425.0,94418.0,0.053032]
[1735337581284,0.053028,94425.0,94419.0,0.053031]
[1735337581486,0.15869145,94431.0,94429.0,0.053026]
[1735337581685,0.15710253,94434.0,94433.0,0.053024]
[1735337582881,0.15710253,94445.0,94430.0,0.80292]